bitfinex/quotes_SOLUSD_20241102
["timestamp","ask_amount","ask_price","bid_price","bid_amount"]
[1730559291849,18.07928204,163.2,163.19,0.12549]
[1730559292178,18.07928204,163.21,163.19,0.12549]
[1730559292667,18.07928204,163.2,163.19,0.12549]
[1730559293169,18.07928204,163.2,163.19,6.50427]
[1730559293384,18.07928204,163.22,163.2,0.12549]
[1730559293762,18.07928204,163.23,163.21,0.12549]
[1730559294269,18.07928204,163.22,163.2,0.37647]
[1730559294491,18.07928204,163.23,163.2,0.37647]
[1730559294972,18.07928204,163.23,163.22,0.12549]
[1730559295353,18.07928204,163.23,163.22,0.25098]
[1730559296772,18.07928204,163.23,163.22,6.37768]
[1730559297963,18.07928204,163.23,163.21,15.3176]
[1730559298165,18.07928204,163.22,163.21,15.3176]
[1730559298664,18.07928204,163.22,163.21,15.44309]
[1730559300284,18.07928204,163.22,163.21,0.12549]
[1730559300571,18.07928204,163.22,163.18,15.3203]
[1730559300572,24.20598204,163.22,163.18,15.3203]
[1730559300759,18.07928204,163.19,163.18,15.3203]
[1730559301174,18.07928204,163.19,163.18,15.44579]
[1730559301369,18.07928204,163.19,163.16,6.1286]
[1730559301557,18.07928204,163.18,163.15,45.9691]
[1730559301866,18.07928204,163.17,163.16,0.12549]
[1730559302062,18.07928204,163.18,163.15,15.3232]
[1730559302254,18.07928204,163.19,163.15,15.3232]
[1730559302448,18.07928204,163.19,163.16,0.25098]
[1730559302653,18.07928204,163.19,163.17,0.12549]
[1730559303661,18.07928204,163.19,163.18,0.12549]
[1730559306457,18.07928204,163.19,163.14,0.25098]
[1730559306664,18.07928204,163.15,163.14,6.1297]
[1730559306858,18.07928204,163.15,163.13,15.3243]
[1730559307177,18.07928204,163.14,163.13,21.57979]
[1730559307571,18.07928204,163.15,163.14,0.12549]
[1730559307955,18.07928204,163.16,163.14,0.12549]
[1730559308163,18.07928204,163.16,163.14,0.25098]
[1730559309189,18.07928204,163.16,163.15,6.25479]
[1730559309890,18.07928204,163.17,163.15,6.25479]
[1730559310058,18.07928204,163.17,163.16,0.25098]
[1730559311157,18.07928204,163.17,163.16,6.37988]
[1730559311377,18.07928204,163.17,163.15,15.3233]
[1730559311685,18.07928204,163.16,163.12,15.3258]
[1730559311866,18.07928204,163.13,163.12,15.3258]
[1730559312466,18.17928204,163.2,163.12,15.3258]
[1730559312467,18.07928204,163.15,163.12,15.3258]
[1730559312683,18.07928204,163.14,163.12,15.3258]
[1730559313181,6.1278,163.19,163.13,0.12549]
[1730559313483,6.1278,163.19,163.14,6.1297]
[1730559313778,18.07928204,163.15,163.14,6.25519]
[1730559314290,18.07928204,163.17,163.15,0.25098]
[1730559314778,18.07928204,163.16,163.15,0.25098]
[1730559315354,18.07928204,163.16,163.15,6.38028]
[1730559315574,18.07928204,163.16,163.15,0.12549]
[1730559316073,18.07928204,163.16,163.14,21.4538]
[1730559316272,18.07928204,163.15,163.14,21.4538]
[1730559316771,18.07928204,163.15,163.1,30.656]
[1730559316772,18.07928204,163.15,163.11,15.3268]
[1730559316968,6.1278,163.19,163.12,0.12549]
[1730559317170,18.07928204,163.13,163.11,15.3268]
[1730559317359,18.07928204,163.12,163.11,15.3268]
[1730559317774,18.07928204,163.12,163.11,15.45229]
[1730559318562,36.15856408,163.12,163.11,15.57778]
[1730559318880,36.15856408,163.12,163.11,15.45229]
[1730559319478,36.15856408,163.12,163.11,21.58309]
[1730559319701,18.07928204,163.12,163.11,21.83407]
[1730559322568,11.54979676,163.12,163.11,21.83407]
[1730559322891,11.54979676,163.13,163.12,24.153354]
[1730559323189,11.54979676,163.14,163.13,0.12549]
[1730559323386,11.54979676,163.19,163.15,0.12549]
[1730559323687,11.54979676,163.2,163.17,0.12549]
[1730559323987,16.5754,163.26,163.17,0.12549]
[1730559323988,11.54979676,163.22,163.18,0.12549]
[1730559324195,11.54979676,163.23,163.2,0.12549]
[1730559324373,11.54979676,163.21,163.2,0.12549]
[1730559324691,18.03143497,163.21,163.19,15.3194]
[1730559324986,18.03143497,163.2,163.19,15.3194]
[1730559325780,18.03143497,163.2,163.15,21.82907]
[1730559326085,18.03143497,163.18,163.15,21.82907]
[1730559326290,18.03143497,163.19,163.15,21.82907]
[1730559326687,16.5754,163.26,163.17,0.37647]
[1730559326688,18.03143497,163.2,163.17,0.37647]
[1730559326871,16.5754,163.26,163.17,0.37647]
[1730559326872,18.03143497,163.22,163.17,0.37647]
[1730559327881,18.03143497,163.23,163.19,0.37647]
[1730559328093,18.03143497,163.25,163.19,42.18478897]
[1730559328274,18.03143497,163.24,163.19,57.34238897]
[1730559329001,18.03143497,163.23,163.19,39.310954]
[1730559329293,18.03143497,163.23,163.21,0.12549]
[1730559329586,18.03143497,163.23,163.21,0.37647]
[1730559329782,18.03143497,163.25,163.21,0.37647]
[1730559330090,18.03143497,163.25,163.21,24.153354]
[1730559330982,18.03143497,163.25,163.23,0.37647]
[1730559331296,18.03143497,163.26,163.23,0.37647]
[1730559331789,18.03143497,163.27,163.23,24.153354]
[1730559332089,18.03143497,163.26,163.23,24.153354]
[1730559332669,18.03143497,163.27,163.23,24.153354]
[1730559333073,18.03143497,163.28,163.25,0.37647]
[1730559333467,18.03143497,163.29,163.25,0.37647]
[1730559333788,18.03143497,163.28,163.25,0.37647]
[1730559333995,18.03143497,163.28,163.25,24.153354]
[1730559334295,18.03143497,163.3,163.25,42.18478897]
[1730559334992,17.53143497,163.3,163.25,42.18478897]
[1730559335296,17.53143497,163.3,163.27,0.37647]
[1730559336275,17.53143497,163.3,163.29,0.25098]
[1730559337388,17.53143497,163.3,163.29,6.37498]
[1730559340094,18.03143497,163.31,163.29,21.68508]
[1730559340806,18.03143497,163.32,163.3,0.12549]
[1730559341184,18.03143497,163.31,163.3,0.12549]
[1730559341394,18.03143497,163.31,163.29,21.68508]
[1730559341587,18.03143497,163.3,163.29,21.68508]
[1730559341779,18.03143497,163.3,163.29,21.81057]
[1730559342380,18.03143497,163.32,163.3,0.12549]
[1730559342594,18.03143497,163.33,163.3,0.12549]
[1730559343284,18.03143497,163.32,163.3,0.12549]
[1730559343590,18.03143497,163.34,163.31,0.25098]
[1730559343782,18.03143497,163.36,163.33,0.12549]
[1730559343977,18.03143497,163.35,163.33,0.12549]
[1730559344390,18.03143497,163.35,163.34,6.1221]
[1730559344594,18.03143497,163.35,163.34,6.37308]
[1730559344799,18.03143497,163.35,163.34,6.49857]
[1730559347210,18.03143497,163.36,163.35,0.12549]
[1730559348789,18.03143497,163.36,163.35,6.24729]
[1730559351298,36.06286994,163.36,163.31,15.3081]
[1730559351507,42.18426994,163.36,163.31,15.3081]
[1730559351801,18.03143497,163.32,163.31,15.43359]
[1730559352391,18.03143497,163.32,163.31,21.55689]
[1730559353188,18.03143497,163.34,163.32,0.12549]
[1730559353714,18.03143497,163.36,163.32,0.37647]
[1730559354589,20.0,163.41,163.34,0.12549]
[1730559355090,18.03143497,163.35,163.34,0.37647]
[1730559355300,18.03143497,163.35,163.34,0.12549]
[1730559357591,18.03143497,163.35,163.34,6.24759]
[1730559358725,18.03143497,163.36,163.34,6.24759]
[1730559359119,18.03143497,163.35,163.34,21.55299]
[1730559359505,18.03143497,163.36,163.34,21.55299]
[1730559360631,6.1199,163.4,163.34,21.55299]
[1730559360632,18.03143497,163.35,163.34,21.55299]
[1730559361302,18.03143497,163.36,163.34,21.55299]
[1730559361501,18.03143497,163.39,163.35,0.25098]
[1730559361701,18.03143497,163.4,163.36,0.12549]
[1730559362331,18.03143497,163.41,163.36,18.15692497]
[1730559362628,11.51156886,163.41,163.38,0.12549]
[1730559363313,11.51156886,163.4,163.38,0.12549]
[1730559364219,11.51156886,163.41,163.4,0.12549]
[1730559364619,17.98642663,163.41,163.4,0.12549]
[1730559365323,0.6093253,163.42,163.4,42.13978063]
[1730559366321,0.6093253,163.42,163.41,6.49597]
[1730559367430,0.6093253,163.42,163.41,48.25928063]
[1730559368019,0.6093253,163.42,163.41,54.70708063]
[1730559368729,0.6093253,163.42,163.41,54.80708063]
[1730559371017,0.6093253,163.42,163.41,54.90708063]
[1730559372605,17.98642663,163.5,163.43,0.1]
[1730559372809,17.98642663,163.51,163.46,23.902374]
[1730559373010,17.98642663,163.51,163.46,41.88880063]
[1730559373621,17.98642663,163.52,163.46,41.88880063]
[1730559373823,17.98642663,163.53,163.48,23.902374]
[1730559374011,17.98642663,163.53,163.48,41.88880063]
[1730559374212,17.98642663,163.54,163.5,23.902374]
[1730559374414,17.98642663,163.55,163.5,23.902374]
[1730559374712,17.98642663,163.56,163.54,0.12549]
[1730559375409,17.98642663,163.55,163.54,0.12549]
[1730559375626,52.16175326,163.55,163.45,15.2947]
[1730559375824,17.98642663,163.46,163.45,15.2947]
[1730559376223,17.98642663,163.47,163.42,21.4172]
[1730559376540,17.98642663,163.48,163.43,17.98642663]
[1730559376729,17.98642663,163.49,163.44,0.12549]
[1730559377048,17.98642663,163.51,163.46,0.12549]
[1730559377230,17.98642663,163.49,163.46,24.153354]
[1730559377536,17.98642663,163.5,163.46,0.47647]
[1730559377722,17.98642663,163.5,163.46,47.121254]
[1730559378031,16.1889,163.55,163.46,47.121254]
[1730559378032,17.98642663,163.52,163.48,0.12549]
[1730559378214,17.98642663,163.54,163.5,24.153354]
[1730559378421,17.98642663,163.53,163.5,24.153354]
[1730559378635,17.98642663,163.52,163.5,24.153354]
[1730559378833,17.98642663,163.53,163.5,24.153354]
[1730559379139,17.98642663,163.55,163.5,24.253354]
[1730559379318,17.98642663,163.57,163.52,24.153354]
[1730559379561,18.59575193,163.58,163.52,42.13978063]
[1730559379736,17.98642663,163.57,163.52,42.13978063]
[1730559380042,17.98642663,163.57,163.49,51.9908]
[1730559380043,17.98642663,163.53,163.49,21.4079]
[1730559380224,17.98642663,163.5,163.44,0.1]
[1730559380430,17.98642663,163.48,163.43,46.6335]
[1730559380721,15.7954,163.56,163.45,0.1]
[1730559380722,17.98642663,163.49,163.45,0.1]
[1730559381035,17.98642663,163.49,163.45,0.22549]
[1730559381642,17.98642663,163.5,163.46,0.25098]
[1730559381818,17.98642663,163.5,163.48,0.25098]
[1730559382019,17.98642663,163.52,163.48,0.25098]
[1730559382229,17.98642663,163.53,163.48,0.25098]
[1730559382438,17.98642663,163.53,163.5,0.12549]
[1730559382687,17.98642663,163.55,163.5,0.12549]
[1730559383319,17.98642663,163.56,163.52,0.12549]
[1730559383843,17.98642663,163.57,163.54,0.12549]
[1730559384036,17.98642663,163.57,163.54,24.153354]
[1730559384422,18.59575193,163.58,163.54,24.153354]
[1730559384635,17.98642663,163.56,163.54,24.153354]
[1730559385327,17.98642663,163.55,163.54,0.37647]
[1730559385529,17.98642663,163.55,163.54,0.25098]
[1730559386036,17.98642663,163.55,163.54,6.36568]
[1730559387022,17.98642663,163.55,163.54,6.49117]
[1730559389320,17.98642663,163.55,163.46,21.4119]
[1730559389525,17.98642663,163.49,163.46,21.4119]
[1730559389825,17.98642663,163.5,163.47,0.12549]
[1730559390533,17.98642663,163.52,163.47,42.23978063]
[1730559390841,17.98642663,163.52,163.49,24.153354]
[1730559391245,17.98642663,163.54,163.49,24.153354]
[1730559391424,17.98642663,163.55,163.53,0.12549]
[1730559391623,17.98642663,163.56,163.53,0.12549]
[1730559392726,17.98642663,163.56,163.55,0.12549]
[1730559393227,0.6093253,163.58,163.55,0.37647]
[1730559393228,17.98642663,163.57,163.55,0.37647]
[1730559393418,18.59575193,163.58,163.55,24.153354]
[1730559394347,17.98642663,163.57,163.55,24.153354]
[1730559395140,17.98642663,163.57,163.56,6.49037]
[1730559395453,18.59575193,163.58,163.57,0.37647]
[1730559396855,18.59575193,163.58,163.57,6.48997]
[1730559397329,18.59575193,163.58,163.56,15.2849]
[1730559397531,17.98642663,163.57,163.56,21.3988]
[1730559397738,17.98642663,163.57,163.56,21.52429]
[1730559398044,17.98642663,163.57,163.49,6.1165]
[1730559398256,17.98642663,163.52,163.49,6.1165]
[1730559398434,17.98642663,163.53,163.5,0.12549]
[1730559399552,17.98642663,163.52,163.51,0.37647]
[1730559400040,17.98642663,163.56,163.54,0.12549]
[1730559400235,17.98642663,163.57,163.54,0.12549]
[1730559400435,18.59575193,163.58,163.54,0.12549]
[1730559400859,17.98642663,163.55,163.54,0.12549]
[1730559401054,17.98642663,163.55,163.54,6.24019]
[1730559401360,17.98642663,163.55,163.54,6.49117]
[1730559402156,17.98642663,163.57,163.54,21.77787]
[1730559402330,0.6093253,163.58,163.56,0.12549]
[1730559403043,18.59575193,163.58,163.56,0.12549]
[1730559404053,17.98642663,163.57,163.54,21.4014]
[1730559404342,17.98642663,163.56,163.5,39.39312663]
[1730559404543,17.98642663,163.56,163.51,0.12549]
[1730559404854,17.98642663,163.55,163.51,0.12549]
[1730559405048,17.98642663,163.53,163.5,51.9877]
[1730559405446,17.98642663,163.53,163.51,0.12549]
[1730559405955,17.98642663,163.54,163.51,0.12549]
[1730559406142,17.98642663,163.54,163.52,21.404]
[1730559406959,17.98642663,163.54,163.53,0.12549]
[1730559407249,17.98642663,163.54,163.53,6.115]
[1730559408237,17.98642663,163.54,163.5,30.581]
[1730559408550,17.98642663,163.52,163.51,0.37647]
[1730559408954,17.98642663,163.52,163.5,0.12549]
[1730559409158,17.98642663,163.51,163.49,21.4079]
[1730559409358,17.98642663,163.5,163.49,21.4079]
[1730559409533,17.98642663,163.5,163.49,21.65888]
[1730559409962,21.8422,163.57,163.5,0.12549]
[1730559410141,20.0,163.55,163.48,6.38427764]
[1730559410336,0.1,163.53,163.4,6.1199]
[1730559410552,20.0,163.51,163.45,6.38711099]
[1730559410941,20.0,163.51,163.4,52.0194]
[1730559411263,20.0,163.51,163.45,6.38739461]
[1730559411555,17.98642663,163.45,163.41,0.12549]
[1730559411768,17.98642663,163.46,163.45,6.24349]
[1730559412537,17.98642663,163.47,163.45,6.49447]
[1730559412746,17.98642663,163.48,163.47,0.12549]
[1730559413638,17.98642663,163.49,163.47,21.53609]
[1730559413885,17.98642663,163.51,163.49,0.12549]
[1730559414138,17.98642663,163.5,163.49,0.12549]
[1730559414581,17.98642663,163.51,163.49,0.12549]
[1730559415657,17.98642663,163.51,163.5,6.49267]
[1730559415854,17.98642663,163.52,163.51,0.12549]
[1730559416158,17.98642663,163.52,163.51,0.37647]
[1730559417057,17.98642663,163.52,163.51,6.49227]
[1730559417264,17.98642663,163.52,163.51,6.24129]
[1730559417439,17.98642663,163.52,163.5,15.2905]
[1730559417647,17.98642663,163.51,163.5,15.2905]
[1730559417854,17.98642663,163.51,163.5,15.41599]
[1730559418456,17.98642663,163.51,163.49,6.1165]
[1730559418770,17.98642663,163.5,163.47,15.2932]
[1730559418972,17.98642663,163.49,163.47,15.2932]
[1730559419151,17.98642663,163.5,163.48,0.12549]
[1730559420272,17.98642663,163.49,163.48,6.24219]
[1730559420453,17.98642663,163.5,163.48,21.78547]
[1730559421269,17.98642663,163.49,163.48,21.78547]
[1730559421655,17.98642663,163.5,163.48,21.78547]
[1730559422464,17.98642663,163.52,163.49,0.25098]
[1730559422671,17.98642663,163.53,163.5,0.12549]
[1730559422864,17.98642663,163.52,163.5,0.12549]
[1730559423763,17.98642663,163.53,163.5,0.12549]
[1730559425161,17.98642663,163.53,163.52,0.12549]
[1730559426267,17.98642663,163.54,163.52,0.37647]
[1730559427355,17.98642663,163.54,163.53,6.24049]
[1730559429076,17.98642663,163.56,163.54,0.37647]
[1730559429476,17.98642663,163.56,163.55,6.23979]
[1730559429664,17.98642663,163.57,163.56,0.12549]
[1730559429855,17.98642663,163.57,163.56,0.37647]
[1730559430059,0.6093253,163.58,163.56,0.37647]
[1730559430269,0.6093253,163.58,163.56,24.153354]
[1730559430672,0.6093253,163.58,163.56,30.386454]
[1730559430860,18.59575193,163.58,163.56,0.37647]
[1730559431165,17.98642663,163.57,163.56,0.37647]
[1730559431363,17.98642663,163.57,163.56,6.49037]
[1730559431982,17.98642663,163.57,163.56,6.23939]
[1730559432281,17.98642663,163.57,163.53,6.24049]
[1730559432485,17.98642663,163.54,163.53,6.24049]
[1730559433282,17.98642663,163.54,163.53,6.115]
[1730559433589,17.98642663,163.54,163.52,0.12549]
[1730559433803,17.98642663,163.53,163.52,0.12549]
[1730559434474,17.98642663,163.53,163.52,6.36638]
[1730559434683,17.98642663,163.53,163.52,6.49187]
[1730559435370,17.98642663,163.54,163.52,6.49187]
[1730559435586,6.7225253,163.58,163.52,21.78047]
[1730559435587,17.98642663,163.53,163.52,21.78047]
[1730559435766,17.98642663,163.53,163.52,21.52949]
[1730559437377,17.98642663,163.53,163.52,21.78047]
[1730559437778,17.98642663,163.54,163.52,21.78047]
[1730559438284,17.98642663,163.55,163.53,0.25098]
[1730559438681,17.98642663,163.55,163.54,6.24019]
[1730559441375,17.98642663,163.55,163.53,6.1149]
[1730559441582,6.7228253,163.58,163.53,6.24039]
[1730559441583,17.98642663,163.54,163.53,6.24039]
[1730559442085,17.98642663,163.54,163.53,0.12549]
[1730559443297,17.98642663,163.54,163.53,6.24049]
[1730559445508,17.98642663,163.54,163.5,6.36718]
[1730559445793,17.98642663,163.51,163.5,6.1162]
[1730559446480,17.98642663,163.51,163.5,6.24169]
[1730559446676,17.98642663,163.52,163.51,0.12549]
[1730559447589,17.98642663,163.53,163.51,21.53039]
[1730559447800,17.98642663,163.52,163.51,21.65588]
[1730559448005,17.98642663,163.52,163.51,21.78137]
[1730559448389,17.98642663,163.52,163.51,21.53039]
[1730559449695,17.98642663,163.52,163.49,12.50074161]
[1730559450005,17.98642663,163.52,163.49,6.50993161]
[1730559450006,17.98642663,163.5,163.49,6.50993161]
[1730559450201,17.98642663,163.5,163.49,0.12549]
[1730559450910,17.98642663,163.5,163.49,6.24199]
[1730559452512,17.98642663,163.5,163.49,0.12549]
[1730559453011,17.98642663,163.5,163.49,6.24199]
[1730559456610,17.98642663,163.51,163.5,0.12549]
[1730559457592,17.98642663,163.51,163.5,0.37647]
[1730559458102,17.98642663,163.51,163.5,0.12549]
[1730559458704,17.98642663,163.51,163.5,6.24169]
[1730559458915,17.98642663,163.51,163.49,21.4079]
[1730559459110,17.98642663,163.5,163.49,21.4079]
[1730559459632,17.98642663,163.5,163.49,21.53339]
[1730559462631,17.98642663,163.5,163.47,6.1173]
[1730559462918,17.98642663,163.48,163.47,6.1173]
[1730559468403,11.50428095,163.48,163.47,6.1173]
[1730559469322,11.50428095,163.48,163.47,6.24279]
[1730559471543,11.50428095,163.48,163.46,6.38569904]
[1730559471830,46.0171238,163.52,163.46,6.38569904]
[1730559471831,11.50428095,163.47,163.46,6.1176]
[1730559472126,11.50428095,163.47,163.46,6.24309]
[1730559472642,11.50428095,163.47,163.46,6.1176]
[1730559472805,11.50428095,163.47,163.46,15.2942]
[1730559473222,11.50428095,163.47,163.44,6.24389]
[1730559473525,11.50428095,163.45,163.44,6.24389]
[1730559473706,11.50428095,163.45,163.43,21.68380014]
[1730559473902,57.52140475,163.44,163.42,6.1189]
[1730559474107,11.50428095,163.43,163.4,15.2995]
[1730559474308,11.50428095,163.41,163.4,15.2995]
[1730559475435,11.50428095,163.41,163.4,21.4193]
[1730559476738,11.50428095,163.42,163.4,21.79577]
[1730559477032,11.50428095,163.41,163.4,15.2995]
[1730559478026,11.50428095,163.41,163.36,52.6636]
[1730559478232,11.50428095,163.37,163.36,15.303]
[1730559478833,11.50428095,163.37,163.36,21.4244]
[1730559480516,18.00022924,163.37,163.36,21.4244]
[1730559484344,18.00022924,163.37,163.36,15.303]
[1730559485452,18.00022924,163.37,163.36,21.4244]
[1730559493040,18.00022924,163.37,163.36,21.54989]
[1730559493242,18.00022924,163.37,163.36,21.80087]
[1730559498659,18.00022924,163.38,163.37,0.12549]
[1730559498827,18.00022924,163.4,163.37,0.37647]
[1730559499755,18.00022924,163.39,163.37,0.37647]
[1730559499953,18.00022924,163.38,163.37,0.37647]
[1730559500149,18.00022924,163.38,163.37,6.49747]
[1730559500939,18.00022924,163.39,163.37,21.80007]
[1730559502542,11.51395527,163.39,163.37,21.80007]
[1730559503366,11.51395527,163.38,163.37,21.80007]
[1730559505363,11.51395527,163.39,163.37,21.80007]
[1730559507053,11.51395527,163.4,163.37,21.80007]
[1730559509158,11.51395527,163.42,163.37,63.91932527]
[1730559509488,11.51395527,163.43,163.37,63.91932527]
[1730559509675,11.51395527,163.43,163.39,0.12549]
[1730559509874,11.51395527,163.42,163.39,0.12549]
[1730559510579,11.51395527,163.42,163.4,6.1199]
[1730559511768,11.51395527,163.41,163.4,6.1199]
[1730559512286,11.51395527,163.41,163.39,15.3001]
[1730559512586,11.51395527,163.4,163.39,15.3001]
[1730559512900,11.51395527,163.4,163.37,6.1209]
[1730559514380,11.51395527,163.38,163.37,6.1209]
[1730559515284,11.51395527,163.39,163.37,21.4235]
[1730559515476,11.01395527,163.39,163.37,21.4235]
[1730559516186,11.51395527,163.38,163.37,21.4235]
[1730559516679,21.6055,163.43,163.37,21.4235]
[1730559516680,11.51395527,163.42,163.38,0.37647]
[1730559516880,11.51395527,163.41,163.38,0.37647]
[1730559517111,11.51395527,163.4,163.38,0.37647]
[1730559517775,11.51395527,163.4,163.39,6.24579]
[1730559517959,11.51395527,163.41,163.39,21.54659]
[1730559520274,11.51395527,163.42,163.39,21.54659]
[1730559520474,11.51395527,163.4,163.39,21.4211]
[1730559521306,11.01395527,163.4,163.39,21.4211]
[1730559521988,11.01395527,163.4,163.39,15.3008]
[1730559522286,11.51395527,163.41,163.39,15.3008]
[1730559524075,11.51395527,163.42,163.39,15.3008]
[1730559524273,11.51395527,163.43,163.39,15.3008]
[1730559524586,6.1177,163.46,163.39,15.3008]
[1730559524587,11.51395527,163.42,163.39,15.3008]
[1730559525890,6.3109,163.49,163.38,6.1207]
[1730559525891,11.51395527,163.44,163.41,21.4184]
[1730559526082,11.51395527,163.44,163.42,0.12549]
[1730559528289,11.51395527,163.44,163.43,6.1188]
[1730559529471,11.51395527,163.45,163.43,21.4158]
[1730559529867,11.51395527,163.5,163.44,35.66730927]
[1730559530103,11.51395527,163.49,163.44,0.25098]
[1730559530409,11.51395527,163.47,163.43,21.4158]
[1730559530736,11.51395527,163.46,163.43,21.4158]
[1730559531091,11.51395527,163.47,163.44,0.12549]
[1730559531394,11.51395527,163.45,163.43,21.4158]
[1730559531599,11.51395527,163.44,163.43,15.297]
[1730559533496,11.51395527,163.47,163.44,0.12549]
[1730559533687,11.51395527,163.49,163.44,11.89042527]
[1730559534191,11.51395527,163.49,163.44,0.37647]
[1730559534586,11.51395527,163.49,163.45,21.4131]
[1730559534937,11.51395527,163.49,163.46,0.12549]
[1730559535993,11.51395527,163.49,163.47,15.2933]
[1730559536185,11.51395527,163.48,163.47,15.41879]
[1730559536403,11.51395527,163.49,163.47,15.41879]
[1730559537575,11.51395527,163.49,163.47,21.53609]
[1730559539780,11.51395527,163.5,163.47,21.53609]
[1730559542289,11.51395527,163.52,163.48,0.37647]
[1730559542599,11.51395527,163.53,163.48,11.89042527]
[1730559543397,11.51395527,163.53,163.5,0.12549]
[1730559544000,11.51395527,163.54,163.5,0.37647]
[1730559544298,11.51395527,163.55,163.5,11.89042527]
[1730559544696,11.51395527,163.54,163.5,0.37647]
[1730559544897,11.51395527,163.53,163.5,0.12549]
[1730559545203,11.51395527,163.52,163.5,0.12549]
[1730559545589,11.51395527,163.52,163.51,6.1158]
[1730559546597,11.51395527,163.52,163.49,21.4076]
[1730559546905,11.51395527,163.51,163.49,21.4076]
[1730559547305,11.51395527,163.53,163.49,21.4076]
[1730559547605,11.51395527,163.54,163.49,21.4076]
[1730559547994,11.51395527,163.54,163.5,0.12549]
[1730559548302,11.51395527,163.54,163.5,0.37647]
[1730559548682,11.51395527,163.54,163.51,21.4053]
[1730559549105,11.51395527,163.53,163.51,21.4053]
[1730559549304,11.51395527,163.54,163.51,21.4053]
[1730559549805,11.51395527,163.56,163.52,0.37647]
[1730559550006,11.51395527,163.55,163.52,0.37647]
[1730559550211,11.51395527,163.55,163.52,0.12549]
[1730559550635,11.51395527,163.54,163.52,0.12549]
[1730559550998,11.51395527,163.54,163.52,6.24059]
[1730559551690,11.51395527,163.55,163.52,21.52919]
[1730559552792,20.1,163.52,163.45,6.38472725]
[1730559553110,11.51395527,163.46,163.41,21.4184]
[1730559553310,11.51395527,163.45,163.43,0.12549]
[1730559554191,11.51395527,163.45,163.43,6.24389]
[1730559554586,11.51395527,163.45,163.43,6.1184]
[1730559555403,11.51395527,163.46,163.43,6.1184]
[1730559555721,11.51395527,163.45,163.43,6.1184]
[1730559556616,6.1166,163.49,163.42,6.38806354]
[1730559556617,11.51395527,163.44,163.42,6.1191]
[1730559556796,11.51395527,163.43,163.42,6.24459]
[1730559557690,6.1166,163.49,163.43,0.12549]
[1730559557691,11.51395527,163.45,163.43,0.12549]
[1730559557908,11.51395527,163.44,163.42,21.4171]
[1730559558087,11.51395527,163.43,163.4,6.38839785]
[1730559558285,11.51395527,163.41,163.39,0.12549]
[1730559558585,11.51395527,163.4,163.39,0.25098]
[1730559559313,11.51395527,163.42,163.4,0.12549]
[1730559560216,11.51395527,163.41,163.4,0.12549]
[1730559560796,11.51395527,163.41,163.4,6.24539]
[1730559561592,11.51395527,163.41,163.39,21.4211]
[1730559561802,11.51395527,163.4,163.39,21.4211]
[1730559562695,11.51395527,163.4,163.39,15.3008]
[1730559563031,11.51395527,163.4,163.38,6.1207]
[1730559563315,11.51395527,163.39,163.37,12.51044155]
[1730559563496,11.51395527,163.38,163.37,12.63593155]
[1730559563690,11.51395527,163.4,163.37,12.63593155]
[1730559564014,11.51395527,163.41,163.37,27.93853155]
[1730559564251,11.51395527,163.41,163.38,0.12549]
[1730559565205,11.51395527,163.41,163.39,6.1203]
[1730559566389,11.51395527,163.4,163.39,6.1203]
[1730559566593,11.51395527,163.41,163.39,6.1203]
[1730559567020,11.51395527,163.4,163.39,6.1203]
[1730559567409,11.51395527,163.44,163.4,0.12549]
[1730559567699,11.51395527,163.43,163.4,0.12549]
[1730559567894,11.51395527,163.42,163.4,0.12549]
[1730559568315,11.51395527,163.43,163.4,0.37647]
[1730559568611,11.51395527,163.45,163.4,11.89042527]
[1730559568821,11.51395527,163.45,163.42,0.12549]
[1730559570013,11.51395527,163.45,163.43,6.1188]
[1730559573522,11.51395527,163.45,163.44,0.12549]
[1730559573709,15.7291,163.51,163.44,21.4145]
[1730559573710,11.51395527,163.46,163.44,21.4145]
[1730559574220,15.8291,163.51,163.45,0.12549]
[1730559574221,11.51395527,163.49,163.45,0.12549]
[1730559574409,11.51395527,163.48,163.45,0.37647]
[1730559574606,11.51395527,163.47,163.45,0.37647]
[1730559575763,11.51395527,163.47,163.46,6.24319]
[1730559576493,11.51395527,163.47,163.44,21.4143]
[1730559576717,11.51395527,163.45,163.44,21.53979]
[1730559577307,10.01395527,163.45,163.44,21.53979]
[1730559578017,11.51395527,163.47,163.44,21.53979]